[Event "Titled Tuesday Blitz December 27 Early 2022"]
[White "Kvaloy, Aksel Bu"]
[Black "Diaz, Fernando"]
[WhiteFideId "1528815"]
[BlackFideId "3701255"]
[WhiteElo "2321"]
[BlackElo "2121"]
[Result "1-0"]
[Round "04"]
[TimeControl "180+2"]
[Date "2022.12.27"]
[WhiteClock "0:00:23"]
[BlackClock "0:00:10"]

1. d4 {[%clk 0:03:00]}  e5 {[%clk 0:02:29]} 2. c4 {[%clk 0:03:01]}  exd4 {[%clk 0:02:28]} 3. Qxd4 {[%clk 0:03:00]}  Nc6 {[%clk 0:02:29]} 4. Qd1 {[%clk 0:02:59]}  Bc5 {[%clk 0:02:29]} 5. Nf3 {[%clk 0:02:56]}  Nge7 {[%clk 0:02:25]} 6. g3 {[%clk 0:02:55]}  d6 {[%clk 0:02:25]} 7. Bg2 {[%clk 0:02:55]}  Be6 {[%clk 0:02:26]} 8. b3 {[%clk 0:02:54]}  a5 {[%clk 0:02:24]} 9. Nc3 {[%clk 0:02:48]}  O-O {[%clk 0:02:23]} 10. O-O {[%clk 0:02:47]}  Qd7 {[%clk 0:02:22]} 11. Ng5 {[%clk 0:02:41]}  Bf5 {[%clk 0:02:22]} 12. Bb2 {[%clk 0:02:39]}  h6 {[%clk 0:02:21]} 13. Nf3 {[%clk 0:02:38]}  Bh3 {[%clk 0:02:21]} 14. Ne4 {[%clk 0:02:36]}  Bb6 {[%clk 0:02:18]} 15. Qd2 {[%clk 0:02:32]}  Bxg2 {[%clk 0:02:17]} 16. Kxg2 {[%clk 0:02:33]}  Qf5 {[%clk 0:02:09]} 17. Qc3 {[%clk 0:02:22]}  Ne5 {[%clk 0:01:56]} 18. Nxe5 {[%clk 0:02:18]}  dxe5 {[%clk 0:01:57]} 19. f3 {[%clk 0:02:10]}  Nc6 {[%clk 0:01:53]} 20. c5 {[%clk 0:02:10]}  Ba7 {[%clk 0:01:48]} 21. e3 {[%clk 0:02:09]}  Rad8 {[%clk 0:01:41]} 22. Rad1 {[%clk 0:02:06]}  Qe6 {[%clk 0:01:35]} 23. f4 {[%clk 0:01:46]}  f5 {[%clk 0:01:30]} 24. Nf2 {[%clk 0:01:42]}  b6 {[%clk 0:01:08]} 25. Nd3 {[%clk 0:01:35]}  bxc5 {[%clk 0:00:59]} 26. Nxe5 {[%clk 0:01:33]}  Nxe5 {[%clk 0:00:54]} 27. Qxe5 {[%clk 0:01:34]}  Qf7 {[%clk 0:00:47]} 28. Bc3 {[%clk 0:01:07]}  Rde8 {[%clk 0:00:38]} 29. Qd5 {[%clk 0:01:00]}  Rxe3 {[%clk 0:00:36]} 30. Qxf7+ {[%clk 0:01:00]}  Rxf7 {[%clk 0:00:35]} 31. Bxa5 {[%clk 0:01:00]}  c4 {[%clk 0:00:33]} 32. bxc4 {[%clk 0:00:56]}  Re2+ {[%clk 0:00:31]} 33. Kf3 {[%clk 0:00:52]}  Rxa2 {[%clk 0:00:31]} 34. Ra1 {[%clk 0:00:50]}  Rxh2 {[%clk 0:00:30]} 35. Bc3 {[%clk 0:00:35]}  Re7 {[%clk 0:00:25]} 36. Rxa7 {[%clk 0:00:32]}  Rhe2 {[%clk 0:00:21]} 37. Be5 {[%clk 0:00:31]}  Re4 {[%clk 0:00:21]} 38. Rd1 {[%clk 0:00:24]}  g5 {[%clk 0:00:20]} 39. Rd8+ {[%clk 0:00:22]}  Kf7 {[%clk 0:00:20]} 40. Rc8 {[%clk 0:00:22]}  Rxc4 {[%clk 0:00:20]} 41. Rcxc7 {[%clk 0:00:20]}  Rexc7 {[%clk 0:00:18]} 42. Rxc7+ {[%clk 0:00:21]}  Rxc7 {[%clk 0:00:18]} 43. Bxc7 {[%clk 0:00:22]}  g4+ {[%clk 0:00:19]} 44. Ke3 {[%clk 0:00:22]}  h5 {[%clk 0:00:20]} 45. Bd8 {[%clk 0:00:21]}  Ke6 {[%clk 0:00:21]} 46. Bh4 {[%clk 0:00:22]}  Kd5 {[%clk 0:00:20]} 47. Kd3 {[%clk 0:00:22]}  Kc5 {[%clk 0:00:20]} 48. Be7+ {[%clk 0:00:23]}  Kd5 {[%clk 0:00:20]} 49. Bh4 {[%clk 0:00:20]}  Kc5 {[%clk 0:00:20]} 50. Be7+ {[%clk 0:00:19]}  Kd5 {[%clk 0:00:21]} 51. Bf8 {[%clk 0:00:18]}  Ke6 {[%clk 0:00:17]} 52. Kc4 {[%clk 0:00:18]}  Kf7 {[%clk 0:00:17]} 53. Bc5 {[%clk 0:00:18]}  Ke6 {[%clk 0:00:16]} 54. Bb4 {[%clk 0:00:16]}  Kf6 {[%clk 0:00:15]} 55. Kd5 {[%clk 0:00:16]}  Kg6 {[%clk 0:00:15]} 56. Ke5 {[%clk 0:00:17]}  h4 {[%clk 0:00:15]} 57. gxh4 {[%clk 0:00:17]}  Kh5 {[%clk 0:00:15]} 58. Kxf5 {[%clk 0:00:17]}  Kxh4 {[%clk 0:00:16]} 59. Be1+ {[%clk 0:00:17]}  Kh3 {[%clk 0:00:16]} 60. Kg5 {[%clk 0:00:17]}  g3 {[%clk 0:00:16]} 61. Bxg3 {[%clk 0:00:17]}  Kxg3 {[%clk 0:00:17]} 62. f5 {[%clk 0:00:18]}  Kh3 {[%clk 0:00:17]} 63. f6 {[%clk 0:00:19]}  Kg3 {[%clk 0:00:17]} 64. f7 {[%clk 0:00:20]}  Kh3 {[%clk 0:00:16]} 65. f8=Q {[%clk 0:00:20]}  Kg2 {[%clk 0:00:15]} 66. Qf4 {[%clk 0:00:20]}  Kh1 {[%clk 0:00:15]} 67. Qd2 {[%clk 0:00:20]}  Kg1 {[%clk 0:00:15]} 68. Kg4 {[%clk 0:00:21]}  Kf1 {[%clk 0:00:10]} 69. Kg3 {[%clk 0:00:22]}  Kg1 {[%clk 0:00:10]} 70. Qd1# {[%clk 0:00:23]} 1-0


[Site "https://www.chess.com"]

[Event "Titled Tuesday Blitz December 27 Early 2022"]
[White "Larina, Maria"]
[Black "Moreno Perez, Tobias Sebastian"]
[WhiteFideId "24113182"]
[BlackFideId "186716"]
[WhiteElo "1948"]
[BlackElo "2256"]
[Result "0-1"]
[Round "04"]
[TimeControl "180+2"]
[Date "2022.12.27"]
[WhiteClock "0:00:06"]
[BlackClock "0:00:19"]

1. e4 {[%clk 0:03:00]}  c6 {[%clk 0:02:59]} 2. d4 {[%clk 0:03:00]}  d5 {[%clk 0:03:00]} 3. f3 {[%clk 0:03:00]}  Qb6 {[%clk 0:02:58]} 4. Nc3 {[%clk 0:02:59]}  dxe4 {[%clk 0:02:58]} 5. fxe4 {[%clk 0:02:57]}  e5 {[%clk 0:02:59]} 6. Nce2 {[%clk 0:01:58]}  Nf6 {[%clk 0:02:39]} 7. Qd3 {[%clk 0:01:51]}  exd4 {[%clk 0:02:26]} 8. Nxd4 {[%clk 0:01:49]}  Nbd7 {[%clk 0:02:21]} 9. Ngf3 {[%clk 0:01:48]}  Nc5 {[%clk 0:02:19]} 10. Qe3 {[%clk 0:01:42]}  Ne6 {[%clk 0:02:07]} 11. Nxe6 {[%clk 0:01:26]}  Qxe3+ {[%clk 0:02:08]} 12. Bxe3 {[%clk 0:01:26]}  Bxe6 {[%clk 0:02:07]} 13. Bd3 {[%clk 0:01:02]}  Bb4+ {[%clk 0:02:00]} 14. c3 {[%clk 0:01:02]}  Be7 {[%clk 0:02:01]} 15. O-O-O {[%clk 0:01:01]}  Bxa2 {[%clk 0:01:57]} 16. h3 {[%clk 0:00:57]}  Be6 {[%clk 0:01:54]} 17. g4 {[%clk 0:00:57]}  O-O {[%clk 0:01:53]} 18. e5 {[%clk 0:00:53]}  Nd5 {[%clk 0:01:51]} 19. Bd2 {[%clk 0:00:50]}  c5 {[%clk 0:01:49]} 20. Ng5 {[%clk 0:00:47]}  Bxg5 {[%clk 0:01:44]} 21. Bxg5 {[%clk 0:00:47]}  h6 {[%clk 0:01:43]} 22. Bd2 {[%clk 0:00:47]}  Rfd8 {[%clk 0:01:42]} 23. Bc2 {[%clk 0:00:39]}  b5 {[%clk 0:01:37]} 24. Be4 {[%clk 0:00:38]}  Rac8 {[%clk 0:01:34]} 25. g5 {[%clk 0:00:35]}  hxg5 {[%clk 0:01:12]} 26. Bxg5 {[%clk 0:00:36]}  Rd7 {[%clk 0:01:13]} 27. h4 {[%clk 0:00:33]}  Nb6 {[%clk 0:01:09]} 28. h5 {[%clk 0:00:29]}  Rxd1+ {[%clk 0:00:58]} 29. Rxd1 {[%clk 0:00:30]}  Nc4 {[%clk 0:00:46]} 30. h6 {[%clk 0:00:28]}  g6 {[%clk 0:00:45]} 31. Bf6 {[%clk 0:00:27]}  Kh7 {[%clk 0:00:45]} 32. Bg7 {[%clk 0:00:18]}  b4 {[%clk 0:00:35]} 33. Rf1 {[%clk 0:00:13]}  Ne3 {[%clk 0:00:27]} 34. Rf2 {[%clk 0:00:11]}  Rd8 {[%clk 0:00:22]} 35. Rd2 {[%clk 0:00:10]}  Rxd2 {[%clk 0:00:19]} 36. Kxd2 {[%clk 0:00:11]}  Ng4 {[%clk 0:00:20]} 37. cxb4 {[%clk 0:00:11]}  cxb4 {[%clk 0:00:20]} 38. Kd3 {[%clk 0:00:08]}  Nxh6 {[%clk 0:00:20]} 39. Bxh6 {[%clk 0:00:07]}  Kxh6 {[%clk 0:00:20]} 40. Kd4 {[%clk 0:00:07]}  Kg5 {[%clk 0:00:19]} 41. Kc5 {[%clk 0:00:07]}  Kf4 {[%clk 0:00:20]} 42. Bc6 {[%clk 0:00:07]}  b3 {[%clk 0:00:19]} 43. Kb5 {[%clk 0:00:06]}  Kxe5 {[%clk 0:00:18]} 44. Ka6 {[%clk 0:00:06]}  f5 {[%clk 0:00:18]} 45. Kxa7 {[%clk 0:00:06]}  Bd5 {[%clk 0:00:19]} 0-1


[Site "https://www.chess.com"]

[Event "Titled Tuesday Blitz December 27 Early 2022"]
[White "Lenderman, Aleksandr"]
[Black "Kilic, Eray"]
[WhiteFideId "2021285"]
[BlackFideId "44517173"]
[WhiteElo "2572"]
[BlackElo "2414"]
[Result "1/2-1/2"]
[Round "04"]
[TimeControl "180+2"]
[Date "2022.12.27"]
[WhiteClock "0:00:44"]
[BlackClock "0:00:05"]

1. Nf3 {[%clk 0:03:00]}  Nf6 {[%clk 0:03:00]} 2. c4 {[%clk 0:03:00]}  g6 {[%clk 0:03:00]} 3. Nc3 {[%clk 0:03:00]}  Bg7 {[%clk 0:02:59]} 4. e4 {[%clk 0:03:00]}  e5 {[%clk 0:02:49]} 5. Nxe5 {[%clk 0:02:59]}  O-O {[%clk 0:02:50]} 6. Be2 {[%clk 0:02:57]}  Re8 {[%clk 0:02:46]} 7. Nf3 {[%clk 0:02:56]}  Nxe4 {[%clk 0:02:46]} 8. O-O {[%clk 0:02:57]}  Nxc3 {[%clk 0:02:42]} 9. dxc3 {[%clk 0:02:57]}  d6 {[%clk 0:02:42]} 10. Bg5 {[%clk 0:02:56]}  Qd7 {[%clk 0:02:35]} 11. Qd2 {[%clk 0:02:54]}  Nc6 {[%clk 0:02:35]} 12. Rad1 {[%clk 0:02:53]}  Qf5 {[%clk 0:02:28]} 13. Bd3 {[%clk 0:02:49]}  Qa5 {[%clk 0:02:26]} 14. h3 {[%clk 0:02:43]}  Ne5 {[%clk 0:02:08]} 15. Nxe5 {[%clk 0:02:42]}  dxe5 {[%clk 0:02:09]} 16. b4 {[%clk 0:02:37]}  Qa3 {[%clk 0:02:03]} 17. Be4 {[%clk 0:02:36]}  c6 {[%clk 0:02:01]} 18. Qc2 {[%clk 0:02:27]}  Be6 {[%clk 0:01:57]} 19. c5 {[%clk 0:02:11]}  Qxa2 {[%clk 0:01:54]} 20. Qxa2 {[%clk 0:02:12]}  Bxa2 {[%clk 0:01:55]} 21. Rd7 {[%clk 0:02:12]}  Rab8 {[%clk 0:01:52]} 22. b5 {[%clk 0:02:03]}  Be6 {[%clk 0:01:47]} 23. bxc6 {[%clk 0:02:03]}  bxc6 {[%clk 0:01:34]} 24. Rxa7 {[%clk 0:02:01]}  Rec8 {[%clk 0:01:33]} 25. Rd1 {[%clk 0:01:57]}  Bf8 {[%clk 0:01:25]} 26. Be7 {[%clk 0:01:52]}  Bxe7 {[%clk 0:01:23]} 27. Rxe7 {[%clk 0:01:52]}  Rb5 {[%clk 0:01:22]} 28. g4 {[%clk 0:01:38]}  Rxc5 {[%clk 0:01:21]} 29. Rd3 {[%clk 0:01:38]}  Rb8 {[%clk 0:01:14]} 30. Rc7 {[%clk 0:01:36]}  Rb6 {[%clk 0:00:52]} 31. g5 {[%clk 0:01:34]}  Kg7 {[%clk 0:00:50]} 32. Kg2 {[%clk 0:01:28]}  h6 {[%clk 0:00:49]} 33. h4 {[%clk 0:01:26]}  hxg5 {[%clk 0:00:49]} 34. hxg5 {[%clk 0:01:27]}  Rc4 {[%clk 0:00:43]} 35. f3 {[%clk 0:01:26]}  Rb2+ {[%clk 0:00:42]} 36. Kg3 {[%clk 0:01:26]}  Bf5 {[%clk 0:00:39]} 37. Bxf5 {[%clk 0:01:07]}  gxf5 {[%clk 0:00:40]} 38. Rdd7 {[%clk 0:01:07]}  Kg6 {[%clk 0:00:37]} 39. Rxf7 {[%clk 0:01:03]}  f4+ {[%clk 0:00:10]} 40. Kh3 {[%clk 0:00:54]}  Rxc3 {[%clk 0:00:09]} 41. Rg7+ {[%clk 0:00:54]}  Kh5 {[%clk 0:00:08]} 42. Rh7+ {[%clk 0:00:55]}  Kxg5 {[%clk 0:00:08]} 43. Rcg7+ {[%clk 0:00:55]}  Kf6 {[%clk 0:00:08]} 44. Rf7+ {[%clk 0:00:55]}  Ke6 {[%clk 0:00:08]} 45. Re7+ {[%clk 0:00:55]}  Kd5 {[%clk 0:00:08]} 46. Kg4 {[%clk 0:00:54]}  Re3 {[%clk 0:00:08]} 47. Kf5 {[%clk 0:00:52]}  Rc2 {[%clk 0:00:08]} 48. Rh8 {[%clk 0:00:50]}  Kd4 {[%clk 0:00:07]} 49. Rd8+ {[%clk 0:00:49]}  Kc5 {[%clk 0:00:05]} 50. Rxe5+ {[%clk 0:00:49]}  Rxe5+ {[%clk 0:00:06]} 51. Kxe5 {[%clk 0:00:50]}  Rc4 {[%clk 0:00:07]} 52. Rb8 {[%clk 0:00:47]}  Ra4 {[%clk 0:00:06]} 53. Rb1 {[%clk 0:00:47]}  Rc4 {[%clk 0:00:06]} 54. Rb2 {[%clk 0:00:43]}  Ra4 {[%clk 0:00:06]} 55. Rb1 {[%clk 0:00:43]}  Rc4 {[%clk 0:00:05]} 56. Rb2 {[%clk 0:00:43]}  Ra4 {[%clk 0:00:05]} 57. Rb1 {[%clk 0:00:44]} 1/2-1/2


[Site "https://www.chess.com"]

[Event "Titled Tuesday Blitz December 27 Early 2022"]
[White "Marin Ramirez, Gerardo"]
[Black "Lewtak, Damian"]
[WhiteFideId "3901068"]
[BlackFideId "1141724"]
[WhiteElo "2127"]
[BlackElo "2381"]
[Result "0-1"]
[Round "04"]
[TimeControl "180+2"]
[Date "2022.12.27"]
[WhiteClock "0:00:01"]
[BlackClock "0:00:26"]

1. d4 {[%clk 0:03:00]}  d5 {[%clk 0:02:59]} 2. Nf3 {[%clk 0:03:00]}  Nf6 {[%clk 0:02:58]} 3. c4 {[%clk 0:03:00]}  c6 {[%clk 0:02:58]} 4. Nc3 {[%clk 0:03:00]}  dxc4 {[%clk 0:02:56]} 5. a4 {[%clk 0:02:59]}  Bf5 {[%clk 0:02:56]} 6. e3 {[%clk 0:02:59]}  e6 {[%clk 0:02:56]} 7. Bxc4 {[%clk 0:02:59]}  Bb4 {[%clk 0:02:56]} 8. O-O {[%clk 0:03:00]}  O-O {[%clk 0:02:55]} 9. Qe2 {[%clk 0:03:00]}  Ne4 {[%clk 0:02:55]} 10. Nxe4 {[%clk 0:02:55]}  Bxe4 {[%clk 0:02:55]} 11. Nd2 {[%clk 0:02:53]}  Bg6 {[%clk 0:02:55]} 12. Nf3 {[%clk 0:02:41]}  Nd7 {[%clk 0:02:40]} 13. Rd1 {[%clk 0:02:38]}  a5 {[%clk 0:02:39]} 14. e4 {[%clk 0:02:36]}  Qe7 {[%clk 0:02:39]} 15. Bg5 {[%clk 0:02:28]}  f6 {[%clk 0:02:26]} 16. Bf4 {[%clk 0:02:18]}  Kh8 {[%clk 0:02:24]} 17. e5 {[%clk 0:01:50]}  Nb6 {[%clk 0:02:21]} 18. exf6 {[%clk 0:01:29]}  Qxf6 {[%clk 0:02:02]} 19. Bg5 {[%clk 0:01:24]}  Qf5 {[%clk 0:02:01]} 20. Bxe6 {[%clk 0:01:20]}  Qc2 {[%clk 0:01:48]} 21. Qxc2 {[%clk 0:00:20]}  Bxc2 {[%clk 0:01:49]} 22. Rdc1 {[%clk 0:00:19]}  Bf5 {[%clk 0:01:14]} 23. Bxf5 {[%clk 0:00:14]}  Rxf5 {[%clk 0:01:14]} 24. Be3 {[%clk 0:00:13]}  Nd5 {[%clk 0:01:09]} 25. Ne5 {[%clk 0:00:12]}  Nxe3 {[%clk 0:01:03]} 26. fxe3 {[%clk 0:00:12]}  Bd2 {[%clk 0:01:03]} 27. Rc3 {[%clk 0:00:05]}  Bxc3 {[%clk 0:00:49]} 28. bxc3 {[%clk 0:00:06]}  Kg8 {[%clk 0:00:48]} 29. Rb1 {[%clk 0:00:06]}  Ra7 {[%clk 0:00:46]} 30. Nd7 {[%clk 0:00:04]}  b5 {[%clk 0:00:36]} 31. e4 {[%clk 0:00:01]}  Rf7 {[%clk 0:00:33]} 32. Ne5 {[%clk 0:00:01]}  Rfb7 {[%clk 0:00:26]} 0-1


[Site "https://www.chess.com"]

[Event "Titled Tuesday Blitz December 27 Early 2022"]
[White "Mathieu, Phileas"]
[Black "Bryakin, Mikhail"]
[WhiteFideId "36048410"]
[BlackFideId "4165314"]
[WhiteElo "2374"]
[BlackElo "2455"]
[Result "1/2-1/2"]
[Round "04"]
[TimeControl "180+2"]
[Date "2022.12.27"]
[WhiteClock "0:00:04"]
[BlackClock "0:00:12"]

1. c4 {[%clk 0:03:00]}  c5 {[%clk 0:02:42]} 2. Nc3 {[%clk 0:03:00]}  Nf6 {[%clk 0:02:38]} 3. g3 {[%clk 0:03:00]}  Nc6 {[%clk 0:02:34]} 4. Bg2 {[%clk 0:03:00]}  g6 {[%clk 0:02:33]} 5. e3 {[%clk 0:03:00]}  Bg7 {[%clk 0:02:33]} 6. Nge2 {[%clk 0:03:01]}  O-O {[%clk 0:02:33]} 7. O-O {[%clk 0:03:02]}  d6 {[%clk 0:02:27]} 8. b3 {[%clk 0:03:01]}  Bd7 {[%clk 0:02:25]} 9. Bb2 {[%clk 0:03:01]}  Rb8 {[%clk 0:02:25]} 10. d3 {[%clk 0:03:00]}  a6 {[%clk 0:02:21]} 11. Qd2 {[%clk 0:03:00]}  b5 {[%clk 0:02:20]} 12. Nd5 {[%clk 0:02:58]}  Nxd5 {[%clk 0:02:19]} 13. Bxd5 {[%clk 0:02:42]}  e6 {[%clk 0:02:11]} 14. Bxg7 {[%clk 0:02:41]}  Kxg7 {[%clk 0:02:11]} 15. Bg2 {[%clk 0:02:41]}  Qb6 {[%clk 0:02:08]} 16. Rac1 {[%clk 0:02:33]}  Rfc8 {[%clk 0:02:07]} 17. Rfd1 {[%clk 0:02:33]}  Ne7 {[%clk 0:01:49]} 18. h4 {[%clk 0:02:32]}  Bc6 {[%clk 0:01:36]} 19. e4 {[%clk 0:02:26]}  e5 {[%clk 0:01:34]} 20. h5 {[%clk 0:02:26]}  f6 {[%clk 0:01:34]} 21. Bh3 {[%clk 0:02:22]}  Rd8 {[%clk 0:01:33]} 22. Qe3 {[%clk 0:02:05]}  Bd7 {[%clk 0:01:28]} 23. Bxd7 {[%clk 0:02:00]}  Rxd7 {[%clk 0:01:29]} 24. Kg2 {[%clk 0:01:59]}  g5 {[%clk 0:01:20]} 25. f4 {[%clk 0:01:47]}  h6 {[%clk 0:01:20]} 26. Rf1 {[%clk 0:01:42]}  Rf8 {[%clk 0:01:19]} 27. fxg5 {[%clk 0:01:38]}  hxg5 {[%clk 0:01:11]} 28. Rf2 {[%clk 0:01:35]}  Ng8 {[%clk 0:01:11]} 29. Rcf1 {[%clk 0:01:33]}  Qd8 {[%clk 0:01:07]} 30. Nc3 {[%clk 0:01:26]}  b4 {[%clk 0:01:05]} 31. Nd5 {[%clk 0:01:26]}  Rdf7 {[%clk 0:01:06]} 32. Qf3 {[%clk 0:01:11]}  Nh6 {[%clk 0:01:04]} 33. g4 {[%clk 0:01:06]}  Qd7 {[%clk 0:01:04]} 34. Kg3 {[%clk 0:01:06]}  a5 {[%clk 0:00:57]} 35. Ne3 {[%clk 0:01:05]}  Ra8 {[%clk 0:00:55]} 36. Qe2 {[%clk 0:00:59]}  a4 {[%clk 0:00:47]} 37. Nd5 {[%clk 0:00:49]}  Raf8 {[%clk 0:00:40]} 38. Ne3 {[%clk 0:00:43]}  axb3 {[%clk 0:00:39]} 39. axb3 {[%clk 0:00:42]}  Qa7 {[%clk 0:00:39]} 40. Qf3 {[%clk 0:00:35]}  Qd7 {[%clk 0:00:36]} 41. Ra2 {[%clk 0:00:27]}  Qe6 {[%clk 0:00:33]} 42. Rfa1 {[%clk 0:00:25]}  Qc8 {[%clk 0:00:30]} 43. Ra6 {[%clk 0:00:23]}  Rd8 {[%clk 0:00:28]} 44. Nd5 {[%clk 0:00:20]}  Qe6 {[%clk 0:00:27]} 45. Ne3 {[%clk 0:00:19]}  Qc8 {[%clk 0:00:27]} 46. Nf5+ {[%clk 0:00:20]}  Nxf5+ {[%clk 0:00:26]} 47. exf5 {[%clk 0:00:21]}  d5 {[%clk 0:00:18]} 48. cxd5 {[%clk 0:00:19]}  Qb7 {[%clk 0:00:18]} 49. Rc6 {[%clk 0:00:15]}  Rfd7 {[%clk 0:00:19]} 50. Raa6 {[%clk 0:00:15]}  Rxd5 {[%clk 0:00:17]} 51. h6+ {[%clk 0:00:12]}  Kh7 {[%clk 0:00:09]} 52. Rcb6 {[%clk 0:00:10]}  Qxb6 {[%clk 0:00:07]} 53. Rxb6 {[%clk 0:00:10]}  Rxd3 {[%clk 0:00:08]} 54. Rxf6 {[%clk 0:00:09]}  Rxf3+ {[%clk 0:00:07]} 55. Kxf3 {[%clk 0:00:10]}  Rd3+ {[%clk 0:00:05]} 56. Ke4 {[%clk 0:00:11]}  Rxb3 {[%clk 0:00:06]} 57. Kxe5 {[%clk 0:00:11]}  Re3+ {[%clk 0:00:06]} 58. Kd5 {[%clk 0:00:10]}  Rc3 {[%clk 0:00:06]} 59. Rb6 {[%clk 0:00:08]}  b3 {[%clk 0:00:07]} 60. Ke5 {[%clk 0:00:05]}  Re3+ {[%clk 0:00:06]} 61. Kd5 {[%clk 0:00:06]}  Rc3 {[%clk 0:00:06]} 62. Ke5 {[%clk 0:00:04]}  c4 {[%clk 0:00:06]} 63. Kd4 {[%clk 0:00:03]}  Rc2 {[%clk 0:00:07]} 64. Rb5 {[%clk 0:00:02]}  Kxh6 {[%clk 0:00:06]} 65. Rb6+ {[%clk 0:00:02]}  Kg7 {[%clk 0:00:05]} 66. Rb7+ {[%clk 0:00:03]}  Kf6 {[%clk 0:00:05]} 67. Rb6+ {[%clk 0:00:04]}  Ke7 {[%clk 0:00:06]} 68. Rb7+ {[%clk 0:00:05]}  Kd6 {[%clk 0:00:07]} 69. Rb6+ {[%clk 0:00:04]}  Kc7 {[%clk 0:00:07]} 70. Rb4 {[%clk 0:00:04]}  b2 {[%clk 0:00:07]} 71. f6 {[%clk 0:00:04]}  c3 {[%clk 0:00:07]} 72. f7 {[%clk 0:00:03]}  Rf2 {[%clk 0:00:08]} 73. Kxc3 {[%clk 0:00:04]}  Rxf7 {[%clk 0:00:07]} 74. Rxb2 {[%clk 0:00:04]}  Rf4 {[%clk 0:00:07]} 75. Rg2 {[%clk 0:00:05]}  Kd6 {[%clk 0:00:06]} 76. Kd3 {[%clk 0:00:05]}  Ke5 {[%clk 0:00:06]} 77. Ke3 {[%clk 0:00:06]}  Ra4 {[%clk 0:00:07]} 78. Re2 {[%clk 0:00:04]}  Re4+ {[%clk 0:00:07]} 79. Kf3 {[%clk 0:00:03]}  Rxe2 {[%clk 0:00:07]} 80. Kxe2 {[%clk 0:00:04]}  Ke4 {[%clk 0:00:08]} 81. Kf1 {[%clk 0:00:02]}  Kf4 {[%clk 0:00:08]} 82. Kg1 {[%clk 0:00:03]}  Kf3 {[%clk 0:00:09]} 83. Kf1 {[%clk 0:00:03]}  Kg3 {[%clk 0:00:09]} 84. Kg1 {[%clk 0:00:04]}  Kh3 {[%clk 0:00:10]} 85. Kh1 {[%clk 0:00:04]}  Kh4 {[%clk 0:00:10]} 86. Kh2 {[%clk 0:00:04]}  Kxg4 {[%clk 0:00:11]} 87. Kg2 {[%clk 0:00:05]}  Kf4 {[%clk 0:00:11]} 88. Kf2 {[%clk 0:00:04]}  Ke4 {[%clk 0:00:12]} 89. Kg3 {[%clk 0:00:03]}  Ke3 {[%clk 0:00:12]} 90. Kg4 {[%clk 0:00:03]}  Kf2 {[%clk 0:00:12]} 91. Kxg5 {[%clk 0:00:04]} 1/2-1/2


[Site "https://www.chess.com"]

[Event "Titled Tuesday Blitz December 27 Early 2022"]
[White "Mendez Fortes, Eduardo Jesus"]
[Black "Mohammed, Zozek Salah Mohammed"]
[WhiteFideId "3502376"]
[BlackFideId "4803361"]
[WhiteElo "2250"]
[BlackElo "2210"]
[Result "1-0"]
[Round "04"]
[TimeControl "180+2"]
[Date "2022.12.27"]
[WhiteClock "0:01:44"]
[BlackClock "0:00:03"]

1. e4 {[%clk 0:02:59]}  c5 {[%clk 0:02:58]} 2. Nf3 {[%clk 0:03:00]}  d6 {[%clk 0:02:58]} 3. d4 {[%clk 0:03:00]}  cxd4 {[%clk 0:02:59]} 4. Nxd4 {[%clk 0:03:01]}  Nf6 {[%clk 0:02:59]} 5. Nc3 {[%clk 0:03:00]}  a6 {[%clk 0:03:00]} 6. Bg5 {[%clk 0:03:00]}  e6 {[%clk 0:02:57]} 7. f4 {[%clk 0:03:00]}  Qb6 {[%clk 0:02:57]} 8. Qd3 {[%clk 0:02:59]}  Qxb2 {[%clk 0:02:55]} 9. Rb1 {[%clk 0:02:58]}  Qa3 {[%clk 0:02:55]} 10. f5 {[%clk 0:02:59]}  Nc6 {[%clk 0:02:37]} 11. fxe6 {[%clk 0:02:55]}  Bxe6 {[%clk 0:01:47]} 12. Nxe6 {[%clk 0:02:53]}  fxe6 {[%clk 0:01:46]} 13. Rxb7 {[%clk 0:02:53]}  Ne5 {[%clk 0:01:31]} 14. Qh3 {[%clk 0:02:51]}  Nfg4 {[%clk 0:01:23]} 15. Be2 {[%clk 0:02:33]}  Rc8 {[%clk 0:01:16]} 16. Rb3 {[%clk 0:02:32]}  Qa5 {[%clk 0:00:58]} 17. Bd2 {[%clk 0:02:31]}  h5 {[%clk 0:00:44]} 18. Rf1 {[%clk 0:02:20]}  Qc5 {[%clk 0:00:38]} 19. Bxa6 {[%clk 0:02:16]}  Ra8 {[%clk 0:00:19]} 20. Bb5+ {[%clk 0:02:16]}  Ke7 {[%clk 0:00:19]} 21. Bg5+ {[%clk 0:02:14]}  Nf6 {[%clk 0:00:17]} 22. Qh4 {[%clk 0:02:12]}  Nd7 {[%clk 0:00:14]} 23. Kd1 {[%clk 0:01:56]}  Qd4+ {[%clk 0:00:11]} 24. Kc1 {[%clk 0:01:55]}  Rb8 {[%clk 0:00:06]} 25. e5 {[%clk 0:01:50]}  dxe5 {[%clk 0:00:05]} 26. Rd1 {[%clk 0:01:48]}  Qxh4 {[%clk 0:00:03]} 27. Rxd7+ {[%clk 0:01:44]} 1-0


[Site "https://www.chess.com"]

[Event "Titled Tuesday Blitz December 27 Early 2022"]
[White "Mills, Morgen"]
[Black "Gnechko, Ruslan"]
[WhiteFideId "2013304"]
[BlackFideId "14135868"]
[WhiteElo "2009"]
[BlackElo "2132"]
[Result "0-1"]
[Round "04"]
[TimeControl "180+2"]
[Date "2022.12.27"]
[WhiteClock "0:00:38"]
[BlackClock "0:02:04"]

1. e4 {[%clk 0:03:00]}  c5 {[%clk 0:02:53]} 2. Nf3 {[%clk 0:03:00]}  g6 {[%clk 0:02:49]} 3. d4 {[%clk 0:02:54]}  cxd4 {[%clk 0:02:50]} 4. Nxd4 {[%clk 0:02:55]}  Bg7 {[%clk 0:02:49]} 5. c4 {[%clk 0:02:55]}  Nc6 {[%clk 0:02:50]} 6. Be3 {[%clk 0:02:54]}  d6 {[%clk 0:02:50]} 7. Nc3 {[%clk 0:02:49]}  Qb6 {[%clk 0:02:50]} 8. Ne6 {[%clk 0:02:35]}  Qxb2 {[%clk 0:02:47]} 9. Nxg7+ {[%clk 0:02:32]}  Kf8 {[%clk 0:02:47]} 10. Na4 {[%clk 0:01:56]}  Qxg7 {[%clk 0:02:44]} 11. Be2 {[%clk 0:01:56]}  Nf6 {[%clk 0:02:39]} 12. Nc3 {[%clk 0:01:51]}  g5 {[%clk 0:02:34]} 13. Qd2 {[%clk 0:01:48]}  h6 {[%clk 0:02:33]} 14. h3 {[%clk 0:01:47]}  Nxe4 {[%clk 0:02:33]} 15. Nxe4 {[%clk 0:01:41]}  Qxa1+ {[%clk 0:02:32]} 16. Bd1 {[%clk 0:01:41]}  Qe5 {[%clk 0:02:21]} 17. Ng3 {[%clk 0:01:34]}  f5 {[%clk 0:02:14]} 18. Ne2 {[%clk 0:00:44]}  f4 {[%clk 0:02:11]} 19. Bd4 {[%clk 0:00:42]}  Nxd4 {[%clk 0:02:10]} 20. Qxd4 {[%clk 0:00:43]}  Qxd4 {[%clk 0:02:09]} 21. Nxd4 {[%clk 0:00:44]}  a6 {[%clk 0:02:06]} 22. O-O {[%clk 0:00:40]}  e5 {[%clk 0:02:07]} 23. Nb3 {[%clk 0:00:38]}  Be6 {[%clk 0:02:07]} 24. Na5 {[%clk 0:00:38]}  b6 {[%clk 0:02:04]} 0-1


[Site "https://www.chess.com"]